bitfinex/quotes_SOLUSD_20250815
["timestamp","ask_amount","ask_price","bid_price","bid_amount"]
[1755256629573,26.0,194.63,194.54,13.47155623]
[1755256629772,39.47155623,194.59,194.53,13.67155623]
[1755256629955,0.66,194.58,194.55,13.47155623]
[1755256630163,36.74,194.57,194.53,0.86]
[1755256630565,36.74,194.57,194.54,13.47155623]
[1755256630763,36.74,194.57,194.56,13.47155623]
[1755256631382,37.4,194.57,194.55,13.47155623]
[1755256631555,45.91486119,194.57,194.55,13.47155623]
[1755256631889,0.66,194.56,194.53,13.67155623]
[1755256632185,0.66,194.55,194.53,13.67155623]
[1755256632356,0.66,194.55,194.53,0.2]
[1755256632686,40.77529571,194.54,194.53,0.2]
[1755256632862,45.91562674,194.54,194.53,0.2]
[1755256633915,40.11529571,194.54,194.53,0.2]
[1755256634093,40.11529571,194.54,194.53,13.67155623]
[1755256634290,40.11529571,194.54,194.53,0.2]
[1755256634604,45.91562674,194.54,194.53,0.2]
[1755256636087,45.91562674,194.54,194.45,0.66]
[1755256636088,26.0,194.51,194.41,7.82831734]
[1755256636393,50.93155623,194.5,194.44,14.13155623]
[1755256636686,50.93155623,194.5,194.44,13.47155623]
[1755256636878,50.93155623,194.5,194.42,0.66]
[1755256636879,5.14165252,194.49,194.42,0.66]
[1755256637076,14.13155623,194.48,194.42,13.47155623]
[1755256637282,37.48,194.47,194.4,0.66]
[1755256637581,0.66,194.46,194.42,13.47155623]
[1755256637774,0.66,194.45,194.43,13.47155623]
[1755256637976,36.82,194.47,194.42,13.47155623]
[1755256638178,36.82,194.47,194.36,5.14509158]
[1755256638179,3.37529571,194.44,194.36,5.14509158]
[1755256638369,3.37529571,194.44,194.37,0.66]
[1755256638574,36.8,194.43,194.41,13.47155623]
[1755256639069,36.8,194.43,194.4,13.47155623]
[1755256639391,41.94325523,194.43,194.4,13.47155623]
[1755256639576,3.37529571,194.42,194.41,13.47155623]
[1755256639892,3.37529571,194.42,194.39,0.66]
[1755256640091,3.37529571,194.42,194.41,13.47155623]
[1755256640593,3.37529571,194.42,194.41,14.13155623]
[1755256641087,4.23863797,194.48,194.41,19.27532455]
[1755256641291,4.23863797,194.48,194.47,13.47155623]
[1755256641463,34.23863797,194.48,194.47,13.47155623]
[1755256641993,8.26320683,194.48,194.41,5.14376832]
[1755256642199,7.60320683,194.48,194.47,13.47155623]
[1755256642366,7.60320683,194.48,194.47,14.13155623]
[1755256642569,5.6543325,194.51,194.47,14.13155623]
[1755256642776,36.82,194.56,194.5,13.47155623]
[1755256642983,36.82,194.56,194.5,0.66]
[1755256643178,5.7143325,194.57,194.55,13.47155623]
[1755256643385,5.7143325,194.57,194.56,13.47155623]
[1755256643888,0.06,194.57,194.56,14.13155623]
[1755256644472,0.72,194.57,194.49,17.99578383]
[1755256644676,13.47155623,194.54,194.47,13.47155623]
[1755256644975,37.5,194.53,194.46,13.47155623]
[1755256645185,36.88,194.52,194.47,13.47155623]
[1755256645570,0.66,194.51,194.47,13.47155623]
[1755256645775,36.88,194.52,194.48,14.13155623]
[1755256645978,36.88,194.52,194.45,5.14268359]
[1755256645979,0.06,194.57,194.51,13.47155623]
[1755256646177,26.06,194.57,194.55,13.47155623]
[1755256646473,36.94,194.57,194.53,0.66]
[1755256646686,36.94,194.57,194.54,0.66]
[1755256647175,36.94,194.57,194.56,13.47155623]
[1755256647997,0.06,194.57,194.56,13.47155623]
[1755256648482,0.06,194.57,194.56,14.13155623]
[1755256648682,0.06,194.57,194.56,0.66]
[1755256648896,0.06,194.57,194.56,14.13155623]
[1755256649209,0.06,194.57,194.56,19.27135886]
[1755256651003,0.06,194.57,194.56,13.47155623]
[1755256651206,0.75,194.57,194.53,13.47155623]
[1755256651572,0.69,194.56,194.53,13.47155623]
[1755256651808,0.06,194.57,194.47,12.85536997]
[1755256651809,0.69,194.55,194.52,13.47155623]
[1755256652371,0.06,194.57,194.53,13.47155623]
[1755256653009,0.75,194.57,194.53,13.47155623]
[1755256653208,0.75,194.57,194.56,13.47155623]
[1755256653209,0.06,194.57,194.56,13.47155623]
[1755256653508,0.06,194.57,194.56,14.16155623]
[1755256654099,36.88,194.62,194.56,14.16155623]
[1755256654306,36.88,194.62,194.61,13.47155623]
[1755256654505,5.6543325,194.65,194.61,14.16155623]
[1755256654686,36.9,194.66,194.64,13.47155623]
[1755256654887,36.9,194.66,194.65,18.60898237]
[1755256655131,66.9,194.66,194.65,13.47155623]
[1755256655637,30.69,194.66,194.64,13.47155623]
[1755256655912,0.69,194.65,194.62,13.47155623]
[1755256656129,0.06,194.63,194.62,13.47155623]
[1755256656434,0.06,194.61,194.59,5.13900363]
[1755256656619,0.06,194.61,194.6,13.47155623]
[1755256656798,0.06,194.61,194.6,14.16155623]
[1755256657113,0.06,194.61,194.6,13.47155623]
[1755256658420,0.06,194.61,194.6,14.16155623]
[1755256658605,0.06,194.61,194.6,19.30030237]
[1755256660424,0.06,194.61,194.6,18.61030237]
[1755256660623,0.06,194.61,194.6,13.47155623]
[1755256661913,0.06,194.61,194.6,19.30030237]
[1755256662112,3.43877264,194.61,194.6,13.47155623]
[1755256663725,3.43877264,194.61,194.58,5.13923773]
[1755256663945,3.43877264,194.61,194.6,13.47155623]
[1755256664126,0.06,194.61,194.6,13.47155623]
[1755256665430,0.75,194.61,194.52,5.14085955]
[1755256665730,13.47155623,194.59,194.53,13.47155623]
[1755256666033,0.69,194.58,194.53,13.47155623]
[1755256666239,0.69,194.57,194.51,13.47155623]
[1755256666734,4.08449639,194.57,194.52,13.47155623]
[1755256667111,14.16155623,194.56,194.5,13.47155623]
[1755256667309,0.69,194.56,194.52,13.47155623]
[1755256667511,3.39449639,194.57,194.54,13.47155623]
[1755256667818,3.39449639,194.55,194.52,13.47155623]
[1755256668015,0.69,194.54,194.5,13.47155623]
[1755256669102,3.39449639,194.55,194.48,0.03]
[1755256669311,3.39449639,194.53,194.5,13.47155623]
[1755256669722,0.69,194.52,194.48,0.03]
[1755256669923,14.16155623,194.52,194.48,0.03]
[1755256670125,0.69,194.51,194.48,0.03]
[1755256670637,0.69,194.5,194.48,0.03]
[1755256671932,3.39449639,194.51,194.49,13.50155623]
[1755256672134,5.6543325,194.53,194.5,14.16155623]
[1755256672313,5.6543325,194.53,194.49,0.03]
[1755256672314,5.6543325,194.53,194.52,13.47155623]
[1755256672638,5.6543325,194.53,194.51,13.47155623]
[1755256673237,4.09045777,194.52,194.49,13.50155623]
[1755256674008,3.40045777,194.52,194.5,13.47155623]
[1755256674213,3.40045777,194.52,194.51,13.47155623]
[1755256674837,3.40045777,194.52,194.5,13.47155623]
[1755256675132,3.40045777,194.52,194.49,0.03]
[1755256675133,4.09045777,194.52,194.49,0.03]
[1755256675315,0.69,194.51,194.49,0.03]
[1755256675518,3.40045777,194.52,194.49,13.50155623]
[1755256675915,3.40045777,194.51,194.49,13.50155623]
[1755256677134,3.40045777,194.51,194.49,0.03]
[1755256677339,3.40045777,194.5,194.49,5.17158403]
[1755256677544,3.40045777,194.5,194.49,0.03]
[1755256678737,3.40045777,194.5,194.49,14.19155623]
[1755256678964,3.40045777,194.5,194.49,13.50155623]
[1755256679441,9.23104567,194.54,194.49,13.50155623]
[1755256679639,0.69,194.53,194.49,13.50155623]
[1755256680239,3.40045777,194.54,194.51,13.47155623]
[1755256680441,3.40045777,194.54,194.53,13.47155623]
[1755256680741,62.9,194.57,194.53,13.47155623]
[1755256680928,62.9,194.57,194.52,0.69]
[1755256681130,63.57,194.57,194.53,13.47155623]
[1755256681325,5.6543325,194.58,194.56,13.47155623]
[1755256681639,5.6543325,194.58,194.57,13.47155623]
[1755256682142,36.9,194.6,194.57,13.47155623]
[1755256682442,30.0,194.58,194.57,5.80953846]
[1755256682626,0.06,194.61,194.57,5.80953846]
[1755256682815,0.67,194.6,194.53,13.52093735]
[1755256683017,0.67,194.6,194.53,26.67]
[1755256683212,4.06993482,194.6,194.54,5.14033103]
[1755256683443,4.06993482,194.6,194.56,13.47155623]
[1755256683630,0.67,194.59,194.56,13.47155623]
[1755256684128,0.67,194.58,194.54,13.47155623]
[1755256684445,3.39993482,194.6,194.55,13.47155623]
[1755256684629,3.39993482,194.58,194.56,0.67]
[1755256684831,3.39993482,194.58,194.57,14.14155623]
[1755256685626,3.39993482,194.58,194.57,13.47155623]
[1755256685829,0.67,194.6,194.54,5.1402059]
[1755256686029,0.67,194.6,194.56,13.47155623]
[1755256686230,0.67,194.59,194.56,13.47155623]
[1755256686617,3.39993482,194.6,194.56,13.47155623]
[1755256686820,3.39993482,194.6,194.58,13.47155623]
[1755256687723,3.39993482,194.6,194.59,13.47155623]
[1755256687925,3.39993482,194.6,194.59,14.14155623]
[1755256688124,3.45993482,194.61,194.59,14.14155623]
[1755256688325,3.45993482,194.61,194.6,18.61030237]
[1755256689148,0.06,194.61,194.6,18.61030237]
[1755256689518,0.06,194.61,194.6,13.47155623]
[1755256689726,0.06,194.61,194.59,13.47155623]
[1755256690043,0.06,194.61,194.6,13.47155623]
[1755256694350,0.06,194.61,194.6,19.28030237]
[1755256694551,0.06,194.61,194.6,18.61030237]
[1755256694729,0.06,194.61,194.6,13.47155623]
[1755256695624,0.06,194.61,194.6,18.61030237]
[1755256695828,0.06,194.61,194.6,19.28030237]
[1755256696636,0.06,194.63,194.6,19.28030237]
[1755256696951,0.06,194.63,194.62,13.47155623]
[1755256697351,0.06,194.63,194.62,14.14155623]
[1755256698553,0.06,194.63,194.62,19.27977429]
[1755256699248,0.06,194.65,194.62,19.27977429]
[1755256699449,0.06,194.65,194.64,13.47155623]
[1755256699941,0.06,194.65,194.64,14.14155623]
[1755256700448,0.06,194.65,194.64,19.27924632]
[1755256700842,3.39993482,194.69,194.66,26.0]
[1755256701057,3.39993482,194.69,194.66,13.47155623]
[1755256701570,5.13585705,194.71,194.66,13.47155623]
[1755256701756,0.67,194.69,194.66,13.47155623]
[1755256702577,0.73,194.67,194.66,13.47155623]
[1755256703257,0.06,194.67,194.66,19.27871846]
[1755256704272,0.06,194.67,194.66,5.13716223]
[1755256704457,0.06,194.67,194.66,18.60871846]
[1755256705861,0.06,194.67,194.66,13.47155623]
[1755256706047,0.73,194.67,194.66,13.47155623]
[1755256707075,0.06,194.67,194.66,13.47155623]
[1755256708146,0.06,194.67,194.66,18.60871846]
[1755256709174,0.06,194.67,194.66,13.47155623]
[1755256709864,0.06,194.67,194.64,5.13761331]
[1755256710167,0.73,194.67,194.66,13.47155623]
[1755256710376,0.73,194.67,194.65,13.47155623]
[1755256710575,0.73,194.67,194.64,13.47155623]
[1755256710756,0.73,194.67,194.65,8.31618028]
[1755256711766,0.73,194.67,194.62,5.13803393]
[1755256711767,0.69,194.66,194.62,8.31618028]
[1755256711967,0.06,194.67,194.62,9.01618028]
[1755256712278,0.69,194.66,194.62,8.31618028]
[1755256712651,0.69,194.66,194.62,13.46788172]
[1755256712846,0.69,194.65,194.62,13.46788172]
[1755256713051,5.88693477,194.67,194.63,13.46788172]
[1755256713250,0.69,194.66,194.63,13.46788172]
[1755256713985,0.69,194.65,194.63,13.46788172]
[1755256714386,0.75,194.65,194.62,13.46788172]
[1755256714882,0.06,194.65,194.63,13.46788172]
[1755256715882,0.69,194.64,194.62,13.46788172]
[1755256716185,0.69,194.63,194.62,13.46788172]
[1755256716504,0.06,194.65,194.62,13.46788172]
[1755256716670,0.75,194.65,194.62,13.46788172]
[1755256717057,0.69,194.64,194.62,13.46788172]
[1755256717786,0.69,194.63,194.61,13.49788172]
[1755256717986,0.06,194.65,194.61,13.49788172]
[1755256718161,0.69,194.62,194.61,0.03]
[1755256719172,9.22815288,194.62,194.61,0.03]
[1755256724273,4.08993482,194.62,194.61,0.03]
[1755256724593,3.39993482,194.62,194.61,0.03]
[1755256724774,9.22815288,194.62,194.61,0.03]
[1755256730993,3.39993482,194.62,194.61,0.03]
[1755256731993,40.05993482,194.62,194.61,14.19788172]
[1755256732193,40.05993482,194.62,194.61,0.03]
[1755256736992,3.39993482,194.62,194.61,9.0501144]
[1755256737514,3.18153784,194.65,194.61,35.5639626]
[1755256737723,3.18153784,194.65,194.64,8.3201144]
[1755256738086,3.18153784,194.65,194.61,26.03]
[1755256738300,0.69,194.65,194.61,8.3501144]
[1755256738498,0.69,194.65,194.62,8.3201144]
[1755256738817,36.7,194.66,194.63,8.3201144]
[1755256739120,0.69,194.65,194.63,8.3201144]
[1755256739619,0.69,194.64,194.61,8.3501144]
[1755256739909,0.69,194.63,194.61,0.03]
[1755256740110,37.39,194.63,194.61,0.03]
[1755256740314,36.7,194.63,194.61,0.03]
[1755256740615,0.69,194.62,194.61,0.03]
[1755256742407,36.7,194.63,194.61,8.3501144]
[1755256742617,36.7,194.63,194.62,8.3201144]
[1755256742908,5.19695225,194.67,194.62,8.3201144]
[1755256742909,0.06,194.67,194.62,8.3201144]
[1755256743098,36.76,194.67,194.66,8.3201144]
[1755256743496,37.45,194.67,194.63,5.13781961]
[1755256743701,36.76,194.67,194.66,8.3201144]
[1755256745710,0.06,194.67,194.66,13.45727663]
[1755256746023,0.06,194.67,194.66,8.3201144]
[1755256750420,0.75,194.67,194.66,8.3201144]
[1755256750892,3.47492974,194.67,194.66,8.3201144]
[1755256751393,3.47492974,194.67,194.66,13.45727663]
[1755256752404,0.06,194.67,194.66,13.45727663]
[1755256759629,0.06,194.69,194.68,8.3201144]
[1755256759935,0.06,194.71,194.68,8.3201144]
[1755256760225,0.06,194.71,194.7,8.3201144]
[1755256760543,0.06,194.71,194.7,13.45622123]
[1755256760712,0.06,194.73,194.72,26.0]
[1755256760908,3.41311731,194.76,194.72,43.15378672]
[1755256761137,3.41311731,194.76,194.75,8.3201144]
[1755256762224,0.1,194.77,194.75,8.3201144]
[1755256762416,0.1,194.77,194.76,13.45463894]
[1755256770737,0.1,194.77,194.76,49.99463894]
[1755256772838,0.79,194.77,194.76,49.99463894]
[1755256773546,0.1,194.77,194.76,49.99463894]
[1755256774135,0.79,194.77,194.76,36.54]
[1755256774443,0.79,194.77,194.76,8.3201144]
[1755256778730,0.79,194.77,194.76,13.45463894]
[1755256778955,0.1,194.77,194.76,13.45463894]
[1755256780730,0.06,194.78,194.76,13.45463894]
[1755256781050,0.06,194.78,194.77,45.31354049]
[1755256782957,0.06,194.78,194.77,50.44780141]
[1755256783959,0.06,194.8,194.77,50.44780141]
[1755256784135,0.06,194.8,194.79,8.3201144]
[1755256784337,0.06,194.8,194.79,44.7601144]
[1755256785555,0.06,194.8,194.79,49.89384816]
[1755256787140,0.75,194.8,194.79,5.13373376]
[1755256787329,0.75,194.8,194.79,41.55373376]
[1755256787530,0.75,194.8,194.77,5.13426092]
[1755256787740,0.06,194.8,194.79,8.3201144]
[1755256787941,0.06,194.8,194.79,44.7401144]
[1755256788350,0.75,194.8,194.79,44.7401144]
[1755256789554,4.15461136,194.8,194.79,44.7401144]
[1755256790540,0.75,194.8,194.79,8.3201144]
[1755256790734,0.75,194.8,194.74,5.13505186]
[1755256790935,14.20364527,194.8,194.75,36.42]
[1755256791259,0.69,194.79,194.75,44.7401144]
[1755256791444,0.69,194.79,194.75,36.42]
[1755256791637,5.82392685,194.79,194.75,36.42]
[1755256791964,4.09586002,194.78,194.75,44.7401144]
[1755256792259,0.69,194.77,194.75,44.7401144]
[1755256793947,0.69,194.76,194.75,44.7401144]
[1755256795160,0.69,194.76,194.75,8.3201144]
[1755256795858,0.69,194.78,194.75,13.45480857]
[1755256796062,3.41013159,194.79,194.77,8.3201144]
[1755256796265,3.41013159,194.79,194.78,8.3201144]
[1755256797346,4.10013159,194.79,194.78,13.45411173]
[1755256797560,3.41013159,194.79,194.78,13.45411173]
[1755256798268,3.41013159,194.79,194.78,49.85411173]
[1755256799745,0.06,194.8,194.78,49.85411173]
[1755256799944,0.06,194.8,194.79,8.3201144]
[1755256800467,0.75,194.8,194.79,8.3201144]
[1755256800974,0.75,194.8,194.78,36.4]
[1755256801152,0.75,194.8,194.77,8.3201144]
[1755256801153,9.30043297,194.8,194.75,62.41]
[1755256801346,0.68,194.79,194.75,36.41]
[1755256801546,0.68,194.79,194.75,49.86469511]
[1755256801972,0.68,194.79,194.75,44.7301144]
[1755256802771,3.41694752,194.78,194.75,44.7301144]
[1755256803272,0.68,194.77,194.75,49.86489194]
[1755256803467,3.41694752,194.78,194.75,49.86489194]
[1755256803468,3.41694752,194.78,194.76,8.3201144]
[1755256803665,3.41694752,194.78,194.77,44.7201144]
[1755256803838,0.06,194.8,194.77,44.7201144]
[1755256804046,0.06,194.8,194.79,8.3201144]
[1755256804676,0.06,194.8,194.79,44.7201144]
[1755256805173,3.48298623,194.8,194.79,49.85384816]
[1755256806445,0.06,194.8,194.79,49.85384816]
[1755256810680,0.74,194.8,194.79,49.85384816]
[1755256810881,0.06,194.8,194.79,49.85384816]
[1755256817171,0.74,194.8,194.79,49.85384816]
[1755256818387,0.06,194.8,194.79,49.85384816]
[1755256819563,0.06,194.8,194.79,50.36722153]
[1755256819969,1e-08,194.8,194.79,50.36722153]
[1755256820375,0.06,194.82,194.81,26.0]
[1755256820574,0.06,194.82,194.81,71.17343507]
[1755256821767,0.1,194.83,194.81,71.17343507]
[1755256821984,0.1,194.83,194.82,8.3201144]
[1755256822356,0.1,194.83,194.82,13.45305762]
[1755256823176,0.78,194.83,194.82,13.45305762]
[1755256827072,0.1,194.83,194.82,13.45305762]
[1755256829291,0.78,194.83,194.82,5.13294322]
[1755256829482,0.78,194.83,194.82,13.45305762]
[1755256829786,0.1,194.83,194.82,13.45305762]
[1755256830270,0.1,194.83,194.82,13.96635194]
[1755256830972,0.1,194.83,194.82,5.64623754]
[1755256831182,0.1,194.83,194.82,13.96635194]
[1755256831764,0.76,194.83,194.82,13.45305762]
[1755256832484,0.1,194.83,194.82,13.45305762]
[1755256832873,1e-08,194.83,194.82,13.45305762]
[1755256833274,0.66000001,194.83,194.82,13.45305762]
[1755256833473,0.66000001,194.83,194.82,49.75305762]
[1755256837893,0.66000001,194.83,194.79,31.13373376]
[1755256838101,0.66000001,194.83,194.81,8.3201144]
[1755256838401,0.66000001,194.83,194.82,8.3201144]
[1755256838580,1e-08,194.83,194.82,8.3201144]
[1755256838779,3.42485302,194.83,194.82,8.3201144]
[1755256838980,3.42485302,194.83,194.8,36.3]
[1755256839179,0.66,194.82,194.8,36.3]
[1755256839394,0.66,194.82,194.81,8.3201144]
[1755256840494,4.08485301,194.82,194.81,8.3201144]
[1755256840695,4.08485301,194.82,194.81,13.45332111]
[1755256841500,4.08485301,194.82,194.81,8.3201144]
[1755256846398,3.42485301,194.82,194.81,8.3201144]
[1755256846604,3.42485301,194.82,194.81,13.45332111]
[1755256848095,4.08485301,194.82,194.81,5.13320671]
[1755256848304,4.08485301,194.82,194.81,13.45332111]
[1755256848813,3.42485301,194.82,194.81,13.45332111]
[1755256849711,3.42485301,194.82,194.81,13.48332111]
[1755256850906,4.08485301,194.82,194.81,13.48332111]
[1755256853704,3.42485301,194.82,194.81,13.48332111]
[1755256855880,1e-08,194.83,194.81,39.99664178]
[1755256856101,1e-08,194.83,194.82,44.6201144]
[1755256856510,1e-08,194.84,194.83,8.3201144]
[1755256856711,0.1,194.85,194.83,8.83338237]
[1755256856910,0.1,194.85,194.84,70.6201144]
[1755256857608,0.76,194.85,194.84,70.6201144]
[1755256857817,0.1,194.85,194.84,75.75253074]
[1755256858314,0.76,194.85,194.84,75.75253074]
[1755256858913,0.1,194.85,194.84,49.75253074]
[1755256859137,0.76,194.85,194.84,36.3]
[1755256859312,0.76,194.85,194.84,8.3201144]
[1755256860097,0.76,194.85,194.84,13.45253074]
[1755256861720,0.1,194.85,194.84,13.45253074]
[1755256861925,4.32704912,194.89,194.87,26.0]
[1755256862125,4.32704912,194.89,194.88,52.9402288]
[1755256862308,0.06,194.9,194.88,53.45336508]
[1755256862617,8.54316846,194.95,194.92,26.0]
[1755256862925,8.54316846,194.95,194.94,8.3201144]
[1755256863298,0.71,194.97,194.94,8.3201144]
[1755256863507,0.71,194.97,194.96,13.44937168]
[1755256863705,5.72840574,194.99,194.96,13.44937168]
[1755256863996,5.72840574,194.99,194.98,8.3201144]
[1755256864399,6.43840574,194.99,194.98,8.3201144]
[1755256865321,0.71,194.99,194.98,8.3201144]
[1755256868427,4.14183297,194.99,194.98,8.3201144]
[1755256868611,3.43183297,194.99,194.98,8.3201144]
[1755256868920,4.14183297,194.99,194.98,8.3201144]
[1755256869151,4.14183297,194.99,194.97,8.3201144]
[1755256869327,0.71,194.98,194.95,36.3]
[1755256869621,8.5600722,195.0,194.97,8.3201144]
[1755256869827,8.5600722,195.0,194.95,44.6201144]
[1755256869998,8.5600722,195.0,194.95,8.3201144]
[1755256870198,0.71,194.99,194.94,8.3201144]
[1755256870399,0.71,194.99,194.92,36.28]
[1755256870400,12.46194737,194.99,194.93,8.3201144]
[1755256870601,0.71,194.98,194.93,8.3201144]
[1755256870821,5.1289942,194.97,194.93,8.3201144]
[1755256871015,0.71,194.96,194.93,8.3201144]
[1755256872940,5.83930137,194.96,194.93,8.3201144]
[1755256873109,0.71,194.95,194.91,8.3201144]
[1755256873310,0.71,194.95,194.9,44.6001144]
[1755256873638,0.71,194.95,194.9,36.28]
[1755256874004,8.3201144,194.94,194.88,8.3501144]
[1755256874232,8.56113434,194.96,194.88,0.03]
[1755256874233,8.3201144,194.91,194.88,0.03]
[1755256874536,8.3201144,194.9,194.88,0.03]
[1755256874734,8.3201144,194.89,194.88,0.03]
[1755256874938,9.0301144,194.89,194.88,0.03]
[1755256875138,14.16121399,194.89,194.88,0.03]
[1755256875943,17.59304696,194.89,194.88,0.03]
[1755256878222,53.87304696,194.89,194.88,0.03]
[1755256880117,83.87304696,194.89,194.88,0.03]
[1755256882029,87.6640502,194.89,194.88,0.03]
[1755256883136,57.6640502,194.89,194.88,0.03]
[1755256883720,57.6640502,194.89,194.86,0.03]
[1755256883935,14.16154453,194.88,194.86,0.03]
[1755256884341,13.45154453,194.88,194.86,0.03]
[1755256884516,0.71,194.87,194.86,0.03]
[1755256884715,132.61,194.88,194.86,0.03]
[1755256884918,131.9,194.88,194.86,0.03]
[1755256885338,3.43183297,194.87,194.86,0.03]
[1755256886344,3.43183297,194.87,194.86,8.3501144]
[1755256886848,49.79048054,194.92,194.86,8.3501144]
[1755256887063,0.71,194.9,194.86,8.3501144]
[1755256887352,8.3201144,194.91,194.86,0.03]
[1755256887524,0.71,194.89,194.86,0.03]
[1755256888158,0.71,194.88,194.86,0.03]
[1755256888528,3.41639545,194.9,194.87,8.3201144]
[1755256888839,3.41639545,194.9,194.89,8.3201144]
[1755256889227,36.34,194.92,194.89,8.3201144]
[1755256889423,0.71,194.91,194.87,8.3201144]
[1755256889637,0.71,194.91,194.86,0.03]
[1755256889638,8.3201144,194.89,194.86,0.03]
[1755256890043,0.71,194.88,194.86,0.03]
[1755256890325,36.99,194.88,194.86,0.03]
[1755256890525,39.69944992,194.88,194.86,0.03]
[1755256891061,40.38944992,194.88,194.86,0.03]
[1755256891837,3.41944992,194.87,194.86,0.03]
[1755256893051,3.41944992,194.87,194.86,8.3501144]
[1755256894132,3.41944992,194.87,194.86,13.48200396]
[1755256895243,0.69,194.9,194.86,0.03]
[1755256895445,9.0101144,194.89,194.86,0.03]
[1755256895629,8.3201144,194.87,194.86,0.03]
[1755256896054,9.0101144,194.87,194.86,0.03]
[1755256896246,14.14174061,194.87,194.86,0.03]
[1755256896758,5.82162621,194.87,194.86,0.03]
[1755256897330,50.42174061,194.87,194.86,0.03]
[1755256897654,53.8437017,194.87,194.86,0.03]
[1755256902830,53.8437017,194.87,194.84,0.03]
[1755256903035,53.8437017,194.87,194.82,0.03]
[1755256903036,34.3201144,194.85,194.82,0.03]
[1755256903257,8.3201144,194.83,194.81,0.03]
[1755256903564,44.6001144,194.82,194.81,0.03]
[1755256904058,45.2901144,194.82,194.81,0.03]
[1755256904868,50.42305762,194.82,194.81,0.03]
[1755256906857,4.11196109,194.84,194.81,0.03]
[1755256907036,36.28,194.83,194.81,0.03]
[1755256907748,4.11196109,194.82,194.81,0.03]
[1755256909059,3.42196109,194.82,194.81,0.03]
[1755256910860,4.11196109,194.82,194.81,0.03]
[1755256911032,9.24490431,194.82,194.81,0.03]
[1755256911233,4.11196109,194.82,194.81,0.03]
[1755256911461,3.42196109,194.82,194.81,0.03]
[1755256912555,4.11196109,194.82,194.81,0.03]
[1755256913844,9.24490431,194.82,194.81,0.03]
[1755256914548,17.56501871,194.82,194.81,0.03]
[1755256914851,4.11196109,194.82,194.81,0.03]
[1755256915944,9.24490431,194.82,194.81,0.03]
[1755256916282,17.56501871,194.82,194.81,0.03]
[1755256917368,17.56501871,194.82,194.8,0.03]
[1755256917547,48.71207549,194.81,194.8,0.03]
[1755256917963,40.39196109,194.81,194.8,0.03]
[1755256918271,48.71207549,194.81,194.8,0.03]
[1755256919570,53.8452822,194.81,194.8,0.03]
[1755256920239,57.65858436,194.81,194.8,0.03]
[1755256922152,57.66397266,194.81,194.8,0.03]
[1755256925355,61.94604998,194.81,194.8,0.03]
[1755256925554,57.66397266,194.81,194.8,0.03]
[1755256926270,87.66397266,194.81,194.79,0.03]
[1755256926478,38.40746379,194.8,194.79,0.03]
[1755256927156,68.40746379,194.8,194.79,0.03]
[1755256927769,73.54093401,194.8,194.79,0.03]
[1755256928380,77.81975593,194.8,194.79,0.03]
[1755256928953,73.54093401,194.8,194.79,0.03]
[1755256929261,77.81972587,194.8,194.79,0.03]
[1755256929873,81.63302803,194.8,194.79,0.03]
[1755256930177,51.63302803,194.8,194.79,0.03]
[1755256930555,47.35423617,194.8,194.79,0.03]
[1755256931857,77.35423617,194.8,194.79,0.03]
[1755256932377,26.0,194.78,194.77,0.03]
[1755256932574,78.32438419,194.78,194.77,0.03]
[1755256932871,82.79768635,194.78,194.77,0.03]
[1755256933046,112.79768635,194.78,194.77,0.03]
[1755256933247,112.79786963,194.78,194.77,0.03]
[1755256934069,117.93186696,194.78,194.77,0.03]
[1755256934977,87.93186696,194.78,194.77,0.03]
[1755256935679,87.93363808,194.78,194.77,0.03]
[1755256936377,84.12033592,194.78,194.77,0.03]
[1755256937085,75.14022152,194.78,194.77,0.03]
[1755256937252,83.46033592,194.78,194.77,0.03]